Cogmind - Beta 13 @@@ ROGUE MODE // 2024.04.24 @ 23:48:03 Player: Nebula avali Result: Destroyed by P-80 Master with Gamma Rifle Performance ------------- Evolutions (9) 4500 Regions Visited (21) 4200 Robots Destroyed (63) 315 Value Destroyed (2196) 2196 Prototype IDs (41) 820 Alien Tech Used (0) 0 Bonus (1808) 1808 TOTAL SCORE: 13839 Bonus ------- High Alert Combat Kills 196 Follower Combat Kills 286 Entered Garrisons 200 Entered DSFs 500 Aligned with FarCom 300 Met Imprinter 300 Destroyed Z-Imprinter 1000 Friendly Fire -974 Cogmind --------- Core Integrity 0/1600 Matter 300/300 Energy 93/100 System Corruption 9% Temperature Cool (0) Movement Core (50) Location -1/Garrison Parts ------- > --- POWER (2) -------- (None) > --- PROPULSION (8) --- (None) > --- UTILITY (13) ----- Advanced Target Analyzer > --- WEAPON (2) ------- (None) > --- INVENTORY (5) ---- Enhanced Fission Core Enhanced Fission Core Zionite Biocell (600) Advanced Remote Datajack Powered Hammer Peak State ------------ > --- POWER ------------ Enhanced Fission Core Zionite Light DM Reactor > --- PROPULSION ------- Advanced Surge Thruster Advanced Surge Thruster Advanced Surge Thruster Flying Fortress v7 Improved Diametric Drive > --- UTILITY ---------- Experimental Heat Sink Medium Storage Unit Zionite Biocell Zionite Metafield Generator Triangulator Experimental Sensor Array Advanced Signal Interpreter Cloak of Protection Graphene Brace Hacking Suite Hacking Suite Advanced Hacking Suite Splice Drone Bay > --- WEAPON ----------- Heavy Missile Launcher Force Lance > --- INVENTORY -------- Enhanced Fission Core Enhanced Fission Core Advanced Surge Thruster Diametric Drive Zionite Biocell Hacking Suite System Restoration Module Field Lobotomy Kit Force Lance [Rating: 169] Favorites ----------- Power Light Ion Engine Engine Light Ion Engine Power Core Neutrino Core Reactor Zionite Light DM Reactor Propulsion Cesium-ion Thruster Treads Improved Treads Leg Myomer Leg Wheel Wheel Hover Unit Improved Antigrav System Flight Unit Cesium-ion Thruster Utility Medium Storage Unit Device Experimental Sensor Array Storage Medium Storage Unit Processor Improved Signal Interpreter Hackware Hacking Suite Protection Heavy Armor Plating Weapon Grenade Launcher Energy Gun Advanced Beam Rifle Ballistic Gun Assault Rifle Ballistic Cannon Mini Assault Cannon Launcher Grenade Launcher Special Weapon Field Lobotomy Kit Impact Weapon Powered Hammer Slashing Weapon Greatsword Piercing Weapon Force Lance Special Melee Weapon Advanced Datajack Build | -11 -10 -10 -10 -9 -8 -7 -7 -7 -6 -6 -6 -6 -6 -5 -5 -4 -4 -3 -2 -1 -1 ------- Run | Yrd Mat Min Exi Min Mat Fac Low Low Fac Low Low Zio Dee Pro Fac Fac DSF Res Res Acc Gar Slots Evolved 18 | . . . . . 4 2 . . 2 . . . . . 2 2 . 2 2 2 . Power 1 | . . . . . . . . . . . . . . . 1 . . . . . . Propulsion 6 | . . . . . 2 1 . . 1 . . . . . . . . 1 1 . . Utility 11 | . . . . . 2 1 . . 1 . . . . . 1 2 . 1 1 2 . Weapon . | . . . . . . . . . . . . . . . . . . . . . . Parts Attached 142 | . 7 8 1 5 18 6 . 1 2 . . 3 15 2 3 2 5 3 12 19 30 Power 12 | . . 1 1 1 . . . 1 . . . . 2 . 2 . . . . . 4 Engine 4 | . . 1 1 1 . . . . . . . . . . 1 . . . . . . Core 4 | . . . . . . . . 1 . . . . . . 1 . . . . . 2 Reactor 4 | . . . . . . . . . . . . . 2 . . . . . . . 2 Propulsion 42 | . 4 4 . . 9 1 . . 1 . . . 1 . . . . 3 6 6 7 Treads 11 | . 4 3 . . 2 . . . . . . . . . . . . . . . 2 Leg 3 | . . . . . 1 . . . . . . . . . . . . . . . 2 Wheel 2 | . . 1 . . 1 . . . . . . . . . . . . . . . . Hover 5 | . . . . . 2 . . . . . . . . . . . . . . . 3 Flight 21 | . . . . . 3 1 . . 1 . . . 1 . . . . 3 6 6 . Utility 54 | . 2 . . . 8 1 . . 1 . . . 9 2 1 1 1 . 5 10 13 Device 29 | . . . . . 1 1 . . 1 . . . 5 2 1 . 1 . 4 6 7 Storage 4 | . 1 . . . . . . . . . . . 3 . . . . . . . . Processor 6 | . 1 . . . 2 . . . . . . . . . . . . . . 1 2 Hackware 7 | . . . . . 2 . . . . . . . . . . 1 . . 1 3 . Protection 8 | . . . . . 3 . . . . . . . 1 . . . . . . . 4 Artifact . | . . . . . . . . . . . . . . . . . . . . . . Weapon 34 | . 1 3 . 4 1 4 . . . . . 3 3 . . 1 4 . 1 3 6 Energy Gun 5 | . . . . . 1 . . . . . . . 1 . . . . . . . 3 Energy Cannon . | . . . . . . . . . . . . . . . . . . . . . . Ballistic Gun 2 | . . . . . . 1 . . . . . . 1 . . . . . . . . Ballistic Cannon 1 | . . . . . . 1 . . . . . . . . . . . . . . . Launcher 12 | . 1 3 . 3 . 1 . . . . . 1 . . . . 1 . 1 1 . Special Weapon 6 | . . . . . . 1 . . . . . 1 1 . . 1 1 . . 1 . Impact Weapon 1 | . . . . . . . . . . . . . . . . . . . . . 1 Slashing Weapon 2 | . . . . 1 . . . . . . . 1 . . . . . . . . . Piercing Weapon 4 | . . . . . . . . . . . . . . . . . 1 . . 1 2 Special Melee Weapon 1 | . . . . . . . . . . . . . . . . . 1 . . . . Unidentified Prototypes 18 | . . . . . 3 2 . . . . . . 7 . 1 . . 1 3 1 . Corrupted Parts 2 | . . . . 2 . . . . . . . . . . . . . . . . . System Corruption 14 | . . . . 14 . . . . . . . . . . . . . . . . . Parts Lost 64 | . . 5 . 1 7 . . . . . . . . . . . . . 2 16 33 Power 6 | . . 1 . . . . . . . . . . . . . . . . . 1 4 Propulsion 21 | . . 1 . . 4 . . . . . . . . . . . . . 1 7 8 Utility 27 | . . . . . 2 . . . . . . . . . . . . . 1 6 18 Weapon 10 | . . 3 . 1 1 . . . . . . . . . . . . . . 2 3 Highest Loss Streak 18 | . . 3 . 1 3 . . . . . . . . . . . . . 1 16 18 To Critical Strikes . | . . . . . . . . . . . . . . . . . . . . . . Average Slot Usage (%) 82 | . 95 94 98 97 85 71 76 76 78 80 80 75 80 79 74 73 76 76 76 81 51 Engine 5 | . 14 11 12 14 9 7 7 7 . . . . . . 3 . . . . . . Core 1 | . . . . . . . . . 6 6 6 6 . . . 5 5 4 4 3 2 Reactor 1 | . . . . . . . . . . . . . 5 6 5 5 5 4 4 3 1 Treads 8 | . 25 23 14 14 14 . . . . . . . . . . . . . . . 2 Wheel 2 | . . 4 14 14 2 . . . . . . . . . . . . . . . . Flight 9 | . . . . . 3 10 15 15 20 20 20 20 20 20 17 15 15 19 20 19 . Device 8 | . . . . . . 7 7 7 11 13 13 13 13 17 21 21 24 23 22 26 11 Storage 9 | . 14 14 14 14 9 7 7 7 6 6 6 6 12 13 11 10 10 9 8 7 3 Processor 8 | . 9 14 14 14 10 7 7 7 6 6 6 6 6 6 5 5 5 4 4 4 7 Hackware 6 | . . . . . 10 15 15 15 13 13 13 13 6 1 . 5 5 4 5 11 6 Energy Gun 1 | . . . . . 5 4 . . . . . . 5 . . . . . . . 2 Ballistic Gun 2 | . 15 8 . . . 2 . . . . . . . . . . . . . . . Launcher 10 | . 12 17 28 25 11 6 7 7 6 6 6 2 6 6 5 5 . . . . . Special Weapon 1 | . . . . . . . 7 7 6 6 6 2 . 6 1 . 1 . . . . Naked Turns . | . . . . . . . . . . . . . . . . . . . . . . Heaviest Build 78 | 12 18 19 19 27 29 33 33 40 48 48 48 48 48 48 53 54 60 60 68 69 78 Greatest Support 73 | 20 46 46 10 10 63 55 55 55 61 61 61 61 61 60 60 60 60 66 73 69 36 Greatest Overweight (x) 7 | . . 1 1 2 5 . . . . . . . . . . . . . 1 5 7 Average Overweight (x) . | . . . 1 1 . . . . . . . . . . . . . . . . . Largest Inventory Capacity 10 | . 10 10 10 10 10 10 10 10 10 10 10 10 10 10 10 10 10 10 10 10 5 Average Capacity 9 | . 9 10 10 10 10 10 10 10 10 10 10 10 10 10 10 10 10 10 10 9 5 Most Carried 10 | . 10 10 10 10 10 10 10 10 10 10 10 10 10 10 10 10 10 10 10 10 5 Average Carried 9 | . 8 8 9 9 9 8 10 10 9 10 10 9 9 9 8 9 9 9 9 9 4 Final Capacity 10 | 8 10 10 10 10 10 10 10 10 10 10 10 10 10 10 10 10 10 10 10 5 5 Final Carried 10 | 6 10 7 10 10 8 10 10 10 10 10 10 10 10 9 10 9 10 10 10 5 5 Class Distribution -------------------- 50% | Mutant 26% | Hacker-Mutant 12% | Scavenger-Sprinter 8% | Scavenger-Mutant Dominant Class ---------------- Mutant | -10/Materials Mutant | -10/Mines Mutant | -10/Exiles Mutant | -9/Mines Mutant | -8/Materials Hacker-Mutant | -7/Factory Hacker-Mutant | -7/Lower Caves Hacker-Mutant | -7/Lower Caves Hacker-Mutant | -6/Factory Hacker-Mutant | -6/Lower Caves Hacker-Mutant | -6/Lower Caves Hacker-Mutant | -6/Zion Mutant | -6/Deep Caves Mutant | -5/Proximity Caves Scavenger-Sprinter | -5/Factory Scavenger-Sprinter | -4/Factory Scavenger-Sprinter | -4/DSF Scavenger-Sprinter | -3/Research Scavenger-Sprinter | -2/Research Scavenger-Sprinter | -1/Access Scavenger-Mutant | -1/Garrison Resources | -11 -10 -10 -10 -9 -8 -7 -7 -7 -6 -6 -6 -6 -6 -5 -5 -4 -4 -3 -2 -1 -1 ----------- Run | Yrd Mat Min Exi Min Mat Fac Low Low Fac Low Low Zio Dee Pro Fac Fac DSF Res Res Acc Gar Matter Collected 2641 | 179 190 258 218 35 406 41 58 . . . 249 . 260 . 60 . 80 . 74 203 330 Remotely . | . . . . . . . . . . . . . . . . . . . . . . Salvage Created 1722 | . 97 175 . 19 383 61 . . . . 107 . 140 . . . . . 29 105 606 Parts 110 | . 10 20 . 4 18 3 . . . . 9 . 10 . . . . . 4 8 24 Haulers Intercepted 2 | . . . . . 2 . . . . . . . . . . . . . . . . Recyclers Shooed . | . . . . . . . . . . . . . . . . . . . . . . Parts Field Recycled . | . . . . . . . . . . . . . . . . . . . . . . Retrieved Matter . | . . . . . . . . . . . . . . . . . . . . . . Parts Self-Destructed 4 | . . . . . . . . . . . 4 . . . . . . . . . . Prevented . | . . . . . . . . . . . . . . . . . . . . . . Kills | -11 -10 -10 -10 -9 -8 -7 -7 -7 -6 -6 -6 -6 -6 -5 -5 -4 -4 -3 -2 -1 -1 ------- Run | Yrd Mat Min Exi Min Mat Fac Low Low Fac Low Low Zio Dee Pro Fac Fac DSF Res Res Acc Gar Combat Hostiles Destroyed 51 | . 6 11 . 3 6 1 . . . . 5 . 7 . . . . . 1 3 8 Melee 5 | . . . . . . . . . . . . . . . . . . . . . 5 Guns 6 | . 1 1 . . 1 . . . . . . . 1 . . . . . . . 2 AOE 39 | . 5 10 . 3 5 1 . . . . 5 . 6 . . . . . 1 3 . Classes Destroyed 18 | . 2 3 . . 6 1 . . . . 2 . 1 . . . . . 1 . 2 Worker 2 | . . . . . 1 1 . . . . . . . . . . . . . . . Builder 5 | . . 2 . . 3 . . . . . . . . . . . . . . . . Tunneler 1 | . . 1 . . . . . . . . . . . . . . . . . . . Hauler 2 | . . . . . 2 . . . . . . . . . . . . . . . . Recycler 2 | . . . . . 2 . . . . . . . . . . . . . . . . Watcher 2 | . . . . . 1 . . . . . . . . . . . . . . 1 . Swarmer 16 | . 3 3 . 3 . . . . . . 5 . . . . . . . . 2 . Cutter 3 | . . . . . . . . . . . . . . . . . . . 1 1 1 Grunt 15 | . 3 6 . . 5 . . . . . . . . . . . . . . . 1 Brawler 1 | . . . . . . . . . . . . . . . . . . . . . 1 Duelist 1 | . . . . . . . . . . . . . . . . . . . . . 1 Sentry 2 | . . . . . . 1 . . . . . . . . . . . . . . 1 Programmer 2 | . . . . . . . . . . . . . . . . . . . . . 2 Heavy 1 | . . . . . 1 . . . . . . . . . . . . . . . . Zionite 1 | . . . . . 1 . . . . . . . . . . . . . . . . Z-Light 3 | . . . . . . . . . . . . . 3 . . . . . . . . Assembled 6 | . . 2 . . . . . . . . . . 4 . . . . . . . . Thug 2 | . . . . . . . . . . . 1 . . . . . . . . . 1 Savage 1 | . . . . . . . . . . . 1 . . . . . . . . . . Mutant 1 | . . . . . . . . . . . 1 . . . . . . . . . . Best Kill Streak 8 | . 3 8 . 3 6 2 . . . . 5 . 3 . . . . . 1 2 2 Combat Bots Only 5 | . 3 5 . 3 3 1 . . . . 5 . 3 . . . . . 1 2 2 Max Kills in Single Turn 4 | . 2 2 . 3 4 1 . . . . 3 . 2 . . . . . 1 2 1 Gunslinging . | . . . . . . . . . . . . . . . . . . . . . . Exploded 3 | . 2 1 . 3 1 1 . . . . 3 . 2 . . . . . 1 2 . Melee 1 | . . . . . . . . . . . . . . . . . . . . . 1 Uniques/NPCs Destroyed 1 | . . . . . . . . . . . . . 1 . . . . . . . . Z-Imprinter (-6/Deep Caves) Combat | -11 -10 -10 -10 -9 -8 -7 -7 -7 -6 -6 -6 -6 -6 -5 -5 -4 -4 -3 -2 -1 -1 -------- Run | Yrd Mat Min Exi Min Mat Fac Low Low Fac Low Low Zio Dee Pro Fac Fac DSF Res Res Acc Gar Hostile Shots Fired 533 | . 54 28 . . 28 30 . 6 . . 6 . 2 . . . 21 . 14 148 196 Missed 190 | . 16 6 . . 6 16 . 4 . . 3 . 2 . . . 13 . 9 68 47 Intercepted 1 | . . . . . . . . . . . . . . . . . . . . . 1 Damage Taken 8669 | . 395 672 . 54 551 108 . 31 . . 93 . . . . . 223 . 165 2105 4272 Core 1873 | . 94 73 . 15 33 16 . . . . . . . . . . 15 . 22 462 1143 Absorbed by Shields . | . . . . . . . . . . . . . . . . . . . . . . Redirected to Shielding 76 | . . . . . . . . . . . . . . . . . . . . . 76 Regen/Repaired (Parts) 38 | . . . . . 11 27 . . . . . . . . . . . . . . . Core Remaining (%) 90 | 100 . . . 27 94 . . 97 . . . . . 100 100 . 98 100 98 . . Volleys Fired 148 | . 13 23 . 1 32 5 . 2 . . 12 . 12 . . . 1 . 1 5 41 Largest 2 | . 2 2 . 2 2 2 . 1 . . 1 . 2 . . . 1 . 1 1 1 Hottest 100 | . 50 60 . 60 100 67 . . . . 39 . 67 . . . . . 39 39 81 Shots Fired 184 | . 19 40 . 2 38 10 . 2 . . 12 . 14 . . . 1 . 1 5 40 Gun 102 | . 13 14 . . 22 5 . . . . . . 8 . . . . . . . 40 Cannon . | . . . . . . . . . . . . . . . . . . . . . . Launcher 78 | . 6 26 . 2 16 5 . . . . 12 . 6 . . . . . 1 4 . Special 4 | . . . . . . . . 2 . . . . . . . . 1 . . 1 . Kinetic 36 | . 13 14 . . . 5 . . . . . . 4 . . . . . . . . Thermal 58 | . . . . . 22 . . . . . . . 4 . . . . . . . 32 Explosive 78 | . 6 26 . 2 16 5 . . . . 12 . 6 . . . . . 1 4 . Electromagnetic 8 | . . . . . . . . . . . . . . . . . . . . . 8 Robot Hit Streak 8 | . 4 8 . . 5 . . 1 . . 1 . 1 . . . 2 . . 1 6 Robot Miss Streak 4 | . 2 1 . 1 2 . . 1 . . 1 . 3 . . . . . 1 4 4 Penetration Max . | . . . . . . . . . . . . . . . . . . . . . . Secondary Targets . | . . . . . . . . . . . . . . . . . . . . . . Shots Hit Robots 104 | . 10 20 . . 21 . . 1 . . 1 . 3 . . . 1 . 1 2 44 Core Hits 130 | . 9 23 . 3 34 5 . . . . 16 . 14 . . . . . 2 9 15 Critical Kills . | . . . . . . . . . . . . . . . . . . . . . . Critical Parts Destroyed 1 | . . . . . . . . . . . . . . . . . . . . . 1 Critical Strikes 9 | . . . . . 2 . . . . . . . . . . . . . . . 7 Burn 3 | . . . . . 2 . . . . . . . . . . . . . . . 1 Smash 1 | . . . . . . . . . . . . . . . . . . . . . 1 Impale 5 | . . . . . . . . . . . . . . . . . . . . . 5 Melee Attacks 142 | . . . . . . . . . . . . 59 . . . . . 8 8 32 35 Impact 4 | . . . . . . . . . . . . . . . . . . . . . 4 Slashing 59 | . . . . . . . . . . . . 59 . . . . . . . . . Piercing 79 | . . . . . . . . . . . . . . . . . . 8 8 32 31 Sneak Attacks . | . . . . . . . . . . . . . . . . . . . . . . Combat Hostiles . | . . . . . . . . . . . . . . . . . . . . . . Follow-up Attacks . | . . . . . . . . . . . . . . . . . . . . . . Damage Inflicted 7088 | . 497 990 . 183 1779 160 . . . . 938 . 689 . . . . . 145 489 1218 Guns 1200 | . 77 58 . . 360 90 . . . . . . 63 . . . . . . . 552 Cannons . | . . . . . . . . . . . . . . . . . . . . . . Explosions 5084 | . 420 932 . 183 1419 70 . . . . 938 . 626 . . . . . 73 423 . Melee 803 | . . . . . . . . . . . . . . . . . . . 72 66 665 Ramming 1 | . . . . . . . . . . . . . . . . . . . . . 1 Kinetic 261 | . 77 58 . . . 90 . . . . . . 36 . . . . . . . . Thermal 894 | . . . . . 360 . . . . . . . 27 . . . . . . . 507 Explosive 5084 | . 420 932 . 183 1419 70 . . . . 938 . 626 . . . . . 73 423 . Electromagnetic 45 | . . . . . . . . . . . . . . . . . . . . . 45 Impact 68 | . . . . . . . . . . . . . . . . . . . . . 68 Slashing . | . . . . . . . . . . . . . . . . . . . . . . Piercing 735 | . . . . . . . . . . . . . . . . . . . 72 66 597 Highest Corruption 14 | . . . . 14 . . . . . . . . . . . . . . 1 6 8 Average Corruption 6 | . . . . 10 . . . . . . . . . . . . . . 1 4 6 Corruption Purged 2 | . . . . . . . . . . . . . . . . . . . 1 1 . Corruption Blocked . | . . . . . . . . . . . . . . . . . . . . . . Effects 29 | . . . . 5 . . . . . . . . . . . . . . 1 1 22 Message Errors 5 | . . . . . . . . . . . . . . . . . . . . . 5 Matter Fused 9 | . . . . 2 . . . . . . . . . . . . . . 1 . 6 Heat Flow Errors 6 | . . . . 1 . . . . . . . . . . . . . . . . 5 Energy Discharges 1 | . . . . . . . . . . . . . . . . . . . . 1 . Parts Rejected 1 | . . . . . . . . . . . . . . . . . . . . . 1 Data Loss (minor) 4 | . . . . 2 . . . . . . . . . . . . . . . . 2 Data Loss (major) 1 | . . . . . . . . . . . . . . . . . . . . . 1 Alerts 1 | . . . . . . . . . . . . . . . . . . . . . 1 Weapon Failures 1 | . . . . . . . . . . . . . . . . . . . . . 1 Overload Shots . | . . . . . . . . . . . . . . . . . . . . . . Overflow Damage 193 | . 25 57 . . 5 . . . . . 19 . 10 . . . . . 17 1 59 Projectiles . | . . . . . . . . . . . . . . . . . . . . . . Explosions 117 | . 25 57 . . 5 . . . . . 19 . 10 . . . . . . 1 . Melee 76 | . . . . . . . . . . . . . . . . . . . 17 . 59 Knockbacks . | . . . . . . . . . . . . . . . . . . . . . . Impact . | . . . . . . . . . . . . . . . . . . . . . . Kinetic . | . . . . . . . . . . . . . . . . . . . . . . Secondary . | . . . . . . . . . . . . . . . . . . . . . . Self-Inflicted Damage 734 | . 6 395 . 23 62 29 . . . . 49 . . . . . . . . 170 . Shots 27 | . 1 18 . 1 2 1 . . . . 1 . . . . . . . . 3 . Rammed 1 | . . . . . . . . . . . . . . . . . . . . . 1 Targets Rammed 1 | . . . . . . . . . . . . . . . . . . . . . 1 Kicked . | . . . . . . . . . . . . . . . . . . . . . . Crushed . | . . . . . . . . . . . . . . . . . . . . . . Highest Temperature 449 | . 8 30 . 271 165 30 . . . . . . 204 51 3 . . 3 382 449 190 Average Temperature 64 | . 4 10 . 141 59 15 . . . . . . 73 17 3 . . 1 106 69 69 Received Heat Transfer 1005 | . 156 87 . . 198 . . . . . . . . . . . 42 . . 18 504 Effects 2 | . . . . . . . . . . . . . . . . . . . . 2 . Energy Bleed 1 | . . . . . . . . . . . . . . . . . . . . 1 . Damage (minor) 1 | . . . . . . . . . . . . . . . . . . . . 1 . Siege Activations . | . . . . . . . . . . . . . . . . . . . . . . Robots Corrupted . | . . . . . . . . . . . . . . . . . . . . . . Combat Hostiles . | . . . . . . . . . . . . . . . . . . . . . . Parts Fried 2 | . . . . . . . . . . . . . . . . . . . . . 2 Impact Corruptions 1 | . . . . . . . . . . . . . . . . . . . . . 1 Robots Melted 1 | . . . . . 1 . . . . . . . . . . . . . . . . Combat Hostiles . | . . . . . . . . . . . . . . . . . . . . . . Parts Melted 2 | . . . . . 2 . . . . . . . . . . . . . . . . Heat Transferred 1702 | . . . . . 814 . . . . . . . 37 . . . . . . . 851 Parts Sabotaged . | . . . . . . . . . . . . . . . . . . . . . . Parts Stolen . | . . . . . . . . . . . . . . . . . . . . . . Parts Stripped . | . . . . . . . . . . . . . . . . . . . . . . Power Chain Reactions . | . . . . . . . . . . . . . . . . . . . . . . Alert | -11 -10 -10 -10 -9 -8 -7 -7 -7 -6 -6 -6 -6 -6 -5 -5 -4 -4 -3 -2 -1 -1 ------- Run | Yrd Mat Min Exi Min Mat Fac Low Low Fac Low Low Zio Dee Pro Fac Fac DSF Res Res Acc Gar Peak Influence 753 | . 181 217 . 81 314 251 . . 102 . . . . . . 3 4 78 363 753 598 Initial 429 | . . . . . 27 142 . . 79 . . . . . . . 2 . 43 217 429 Average 176 | . 71 77 . 73 162 178 . . 85 . . . . . . 1 1 41 140 367 515 Maximum Alert Level 3 | . . 1 . . 1 1 . . . . . . . . . . . . 1 3 2 Low Security (%) 68 | . 100 99 . 100 60 75 . . 100 . . . . . 100 100 100 100 71 . . Level 1 15 | . . . . . 39 24 . . . . . . . . . . . . 28 74 . Level 2 14 | . . . . . . . . . . . . . . . . . . . . 21 100 Level 3 . | . . . . . . . . . . . . . . . . . . . . 3 . Level 4 . | . . . . . . . . . . . . . . . . . . . . . . Level 5 . | . . . . . . . . . . . . . . . . . . . . . . High Security . | . . . . . . . . . . . . . . . . . . . . . . Max Security . | . . . . . . . . . . . . . . . . . . . . . . Squads Dispatched 21 | . 3 . . . 2 . . . . . . . . . . . 1 3 5 7 . Investigation 7 | . 2 . . . . . . . . . . . . . . . . 1 2 2 . Extermination 2 | . . . . . . . . . . . . . . . . . . 1 . 1 . Reinforcement 12 | . 1 . . . 2 . . . . . . . . . . . 1 1 3 4 . Assault . | . . . . . . . . . . . . . . . . . . . . . . Garrison . | . . . . . . . . . . . . . . . . . . . . . . Intercept . | . . . . . . . . . . . . . . . . . . . . . . Searches Triggered . | . . . . . . . . . . . . . . . . . . . . . . Construction Impeded . | . . . . . . . . . . . . . . . . . . . . . . Haulers Reinforced . | . . . . . . . . . . . . . . . . . . . . . . Active Scanning Responses . | . . . . . . . . . . . . . . . . . . . . . . Cargo Convoy Interrupts . | . . . . . . . . . . . . . . . . . . . . . . Stealth | -11 -10 -10 -10 -9 -8 -7 -7 -7 -6 -6 -6 -6 -6 -5 -5 -4 -4 -3 -2 -1 -1 --------- Run | Yrd Mat Min Exi Min Mat Fac Low Low Fac Low Low Zio Dee Pro Fac Fac DSF Res Res Acc Gar Distress Signals 6 | . 1 . . . 2 . . . . . . . . . . . . . 3 . . Communications Jammed . | . . . . . . . . . . . . . . . . . . . . . . Distress Signals . | . . . . . . . . . . . . . . . . . . . . . . Times Spotted 136 | . 7 13 . . 20 1 . 5 . . 6 . 6 . . . 4 1 15 40 18 Peak Tracking Total 18 | . 4 3 . . 3 1 . 4 . . 7 . 3 . . . 2 1 12 18 9 Tactical Retreats 9 | . . 1 . . . . . . . . 1 . . . . . . . 1 6 . Traps | -11 -10 -10 -10 -9 -8 -7 -7 -7 -6 -6 -6 -6 -6 -5 -5 -4 -4 -3 -2 -1 -1 ------- Run | Yrd Mat Min Exi Min Mat Fac Low Low Fac Low Low Zio Dee Pro Fac Fac DSF Res Res Acc Gar Traps Triggered 10 | . 1 . . . . . . . . . . . . . . . 1 2 2 2 2 Indirectly . | . . . . . . . . . . . . . . . . . . . . . . Trap Hack Attempts . | . . . . . . . . . . . . . . . . . . . . . . Triggered . | . . . . . . . . . . . . . . . . . . . . . . Disarmed . | . . . . . . . . . . . . . . . . . . . . . . Reprogrammed . | . . . . . . . . . . . . . . . . . . . . . . Reused 4 | . . 4 . . . . . . . . . . . . . . . . . . . Traps Extracted . | . . . . . . . . . . . . . . . . . . . . . . Installed 4 | . . 4 . . . . . . . . . . . . . . . . . . . Triggered 4 | . . 4 . . . . . . . . . . . . . . . . . . . Most Traps Carried 3 | . . 3 . . . . . . . . . . . . . . . . . . . Machines | -11 -10 -10 -10 -9 -8 -7 -7 -7 -6 -6 -6 -6 -6 -5 -5 -4 -4 -3 -2 -1 -1 ---------- Run | Yrd Mat Min Exi Min Mat Fac Low Low Fac Low Low Zio Dee Pro Fac Fac DSF Res Res Acc Gar Machines Disabled 8 | . . . . . 2 . . . . . . . 2 . . . 1 . . 2 1 Max in Single Turn 2 | . . . . . 2 . . . . . . . 1 . . . . . . 1 1 Garrison Relay 1 | . . . . . . . . . . . . . . . . . . . . . 1 Energy Cycler 1 | . . . . . . . . . . . . . . . . . . . . 1 . Machines Repaired . | . . . . . . . . . . . . . . . . . . . . . . Machines Dismantled . | . . . . . . . . . . . . . . . . . . . . . . Machines Sabotaged . | . . . . . . . . . . . . . . . . . . . . . . Overloaded Fab Kills . | . . . . . . . . . . . . . . . . . . . . . . Hacking | -11 -10 -10 -10 -9 -8 -7 -7 -7 -6 -6 -6 -6 -6 -5 -5 -4 -4 -3 -2 -1 -1 --------- Run | Yrd Mat Min Exi Min Mat Fac Low Low Fac Low Low Zio Dee Pro Fac Fac DSF Res Res Acc Gar Machines Accessed 37 | . 2 2 5 1 4 4 . . 1 . . . . . 2 2 . 6 3 4 1 Terminals 22 | . 2 1 . . 3 1 . . 1 . . . . . 1 2 . 4 3 3 1 Fabricators 3 | . . . . . . 2 . . . . . . . . 1 . . . . . . Repair Stations 2 | . . . . . 1 1 . . . . . . . . . . . . . . . Recycling Units 1 | . . . . . . . . . . . . . . . . . . 1 . . . Scanalyzers . | . . . . . . . . . . . . . . . . . . . . . . Garrison Access 2 | . . . . . . . . . . . . . . . . . . 1 . 1 . Total Hacks 118 | . 2 3 50 1 12 12 . . 2 . . . . . 4 2 . 12 9 8 1 Successful 81 | . . 1 50 1 5 8 . . 1 . . . . . 1 1 . 7 2 3 1 Failed 37 | . 2 2 . . 7 4 . . 1 . . . . . 3 1 . 5 7 5 . Catastrophic 10 | . 2 1 . . 2 . . . 1 . . . . . 1 . . 2 1 . . Database Lockouts . | . . . . . . . . . . . . . . . . . . . . . . Manual 54 | . 2 2 1 . 9 8 . . 1 . . 1 . . 3 1 . 10 8 8 . Terminals 48 | . 2 2 . . 9 5 . . 2 . . . . . 1 2 . 8 9 7 1 Fabricators 8 | . . . . . . 5 . . . . . . . . 3 . . . . . . Repair Stations 5 | . . . . . 3 2 . . . . . . . . . . . . . . . Recycling Units 2 | . . . . . . . . . . . . . . . . . . 2 . . . Scanalyzers . | . . . . . . . . . . . . . . . . . . . . . . Garrison Access 3 | . . . . . . . . . . . . . . . . . . 2 . 1 . Terminal Hacks 63 | . . 1 50 1 1 2 . . . . . . . . 1 1 . 3 1 1 1 Record 49 | . . . 49 . . . . . . . . . . . . . . . . . . Open Door 3 | . . 1 . 1 . . . . . . . . . . . . . . . . 1 Open DSF 2 | . . . . . . . . . . . . . . . 1 1 . . . . . Level Access Points 4 | . . . . . 1 . . . . . . . . . . . . 1 1 1 . Branch Access Points 1 | . . . . . . 1 . . . . . . . . . . . . . . . Locate Traps 1 | . . . . . . 1 . . . . . . . . . . . . . . . Recall Extermination 1 | . . . . . . . . . . . . . . . . . . 1 . . . Recall Reinforcements 1 | . . . . . . . . . . . . . . . . . . 1 . . . Derelict Proto ID Bank 1 | . . . 1 . . . . . . . . . . . . . . . . . . Fabricator Hacks 1 | . . . . . . 1 . . . . . . . . . . . . . . . Build 1 | . . . . . . 1 . . . . . . . . . . . . . . . Repair Station Hacks 4 | . . . . . 2 2 . . . . . . . . . . . . . . . Scan Component 2 | . . . . . 1 1 . . . . . . . . . . . . . . . Repair 2 | . . . . . 1 1 . . . . . . . . . . . . . . . Recycling Unit Hacks . | . . . . . . . . . . . . . . . . . . . . . . Scanalyzer . | . . . . . . . . . . . . . . . . . . . . . . Garrison Access Hacks 1 | . . . . . . . . . . . . . . . . . . . . 1 . Unlock Access 1 | . . . . . . . . . . . . . . . . . . . . 1 . Unauthorized Hacks 12 | . . . . . 2 3 . . 1 . . . . . . . . 4 1 1 . Terminals 10 | . . . . . 2 1 . . 1 . . . . . . . . 4 1 1 . Botnet 10 | . . . . . 2 1 . . 1 . . . . . . . . 4 1 1 . Fabricators 2 | . . . . . . 2 . . . . . . . . . . . . . . . Fabnet 2 | . . . . . . 2 . . . . . . . . . . . . . . . Repair Stations . | . . . . . . . . . . . . . . . . . . . . . . Recycling Units . | . . . . . . . . . . . . . . . . . . . . . . Scanalyzers . | . . . . . . . . . . . . . . . . . . . . . . Garrison Access . | . . . . . . . . . . . . . . . . . . . . . . Data Cores Recovered . | . . . . . . . . . . . . . . . . . . . . . . Used . | . . . . . . . . . . . . . . . . . . . . . . Hacking Detections 25 | . 2 1 . . 3 3 . . 1 . . . . . 2 1 . 6 3 3 . Full Trace Events 5 | . . 1 . . . . . . . . . . . . . . . 1 1 2 . Feedback Events 2 | . . . . . . . . . . . . . . . . . . . 2 . . Corruption 1 | . . . . . . . . . . . . . . . . . . . 1 . . Hackware Fried 1 | . . . . . . . . . . . . . . . . . . . 1 . . Feedback Blocked . | . . . . . . . . . . . . . . . . . . . . . . Robot Schematics Acquired 3 | . . . . . . . . . . . . 3 . . . . . . . . . Robots Built 1 | . . . . . . 1 . . . . . . . . . . . . . . . Authchips . | . . . . . . . . . . . . . . . . . . . . . . Time 81 | . . . . . . 81 . . . . . . . . . . . . . . . Total Robot Build Rating 1 | . . . . . . 1 . . . . . . . . . . . . . . . Part Schematics Acquired 14 | . . . . . . . . . . . . 14 . . . . . . . . . Parts Built . | . . . . . . . . . . . . . . . . . . . . . . Authchips . | . . . . . . . . . . . . . . . . . . . . . . Time . | . . . . . . . . . . . . . . . . . . . . . . Total Part Build Rating . | . . . . . . . . . . . . . . . . . . . . . . Parts Repaired 2 | . . . . . 1 1 . . . . . . . . . . . . . . . Time 130 | . . . . . 108 22 . . . . . . . . . . . . . . . Parts Recycled . | . . . . . . . . . . . . . . . . . . . . . . Recycled Matter . | . . . . . . . . . . . . . . . . . . . . . . Retrieved Matter . | . . . . . . . . . . . . . . . . . . . . . . Retrieved Components . | . . . . . . . . . . . . . . . . . . . . . . Parts Scanalyzed . | . . . . . . . . . . . . . . . . . . . . . . Part Schematics Acquired . | . . . . . . . . . . . . . . . . . . . . . . Parts Damaged . | . . . . . . . . . . . . . . . . . . . . . . Bothacking | -11 -10 -10 -10 -9 -8 -7 -7 -7 -6 -6 -6 -6 -6 -5 -5 -4 -4 -3 -2 -1 -1 ------------ Run | Yrd Mat Min Exi Min Mat Fac Low Low Fac Low Low Zio Dee Pro Fac Fac DSF Res Res Acc Gar Used RIF Installer . | . . . . . . . . . . . . . . . . . . . . . . Robots Hacked 1 | . . . . . . . . . . . 1 . . . . . . . . . . Non-combat . | . . . . . . . . . . . . . . . . . . . . . . Combat 1 | . . . . . . . . . . . 1 . . . . . . . . . . Robot Hacks Applied . | . . . . . . . . . . . . . . . . . . . . . . Relay Couplers Released 5 | . . . . . . . . . . . . . . . . . . . . . 5 Machine Destruction 5 | . . . . . . . . . . . . . . . . . . . . . 5 Fabnet Peak Effective % 6 | . . . . . . . . . 6 6 6 6 6 2 2 . . . . . . Autooverrided 1 | . . . . . . . . . . . 1 . . . . . . . . . . Robots Rewired . | . . . . . . . . . . . . . . . . . . . . . . Allies Hacked . | . . . . . . . . . . . . . . . . . . . . . . Hacks Repelled . | . . . . . . . . . . . . . . . . . . . . . . Allies | -11 -10 -10 -10 -9 -8 -7 -7 -7 -6 -6 -6 -6 -6 -5 -5 -4 -4 -3 -2 -1 -1 -------- Run | Yrd Mat Min Exi Min Mat Fac Low Low Fac Low Low Zio Dee Pro Fac Fac DSF Res Res Acc Gar Total Allies 12 | . . . . 2 . 1 . 1 . . 1 2 . . . . 2 . . 1 2 Largest Group 2 | . . . . 2 2 1 1 2 2 . 1 2 2 . . . 2 . . 1 2 Highest-Rated Group 205 | . . . . 45 45 9 9 46 46 . 12 192 192 . . . 205 . . 58 92 Highest-Rated Ally 137 | . . . . 31 31 9 9 37 37 . 12 96 96 . . . 137 . . 58 46 Total Orders 9 | . . . . . . 2 4 . . . . . . 2 . . 1 . . . . FOLLOW 2 | . . . . . . 1 1 . . . . . . . . . . . . . . DROP 1 | . . . . . . . 1 . . . . . . . . . . . . . . COLLECT 3 | . . . . . . 1 2 . . . . . . . . . . . . . . EXPLORE 1 | . . . . . . . . . . . . . . 1 . . . . . . . RETURN 2 | . . . . . . . . . . . . . . 1 . . 1 . . . . Ally Attacks 136 | . . . . . 41 . . . 3 . 4 . 52 . . . 9 . . 9 18 Total Damage 2861 | . . . . . 447 . . . 100 . 38 . 1190 . . . 339 . . 212 535 Kills 16 | . . . . . 2 . . . . . . . 10 . . . . . . 2 2 Allies Corrupted . | . . . . . . . . . . . . . . . . . . . . . . Allies Melted . | . . . . . . . . . . . . . . . . . . . . . . Field Lobotomies 3 | . . . . . . . . 1 . . . . . . . . 1 . . 1 . Intel | -11 -10 -10 -10 -9 -8 -7 -7 -7 -6 -6 -6 -6 -6 -5 -5 -4 -4 -3 -2 -1 -1 ------- Run | Yrd Mat Min Exi Min Mat Fac Low Low Fac Low Low Zio Dee Pro Fac Fac DSF Res Res Acc Gar Robot Analysis Total . | . . . . . . . . . . . . . . . . . . . . . . Derelict Logs Recovered 7 | . . 2 . . . . 2 . . 1 1 1 . . . . . . . . . Drone Launches 14 | . . . . . . . . . . . . . . 1 . . 6 . . 7 . Drone Recoveries 8 | . . . . . . . . . . . . . . 1 . . 5 . . 2 . Exploration | -11 -10 -10 -10 -9 -8 -7 -7 -7 -6 -6 -6 -6 -6 -5 -5 -4 -4 -3 -2 -1 -1 ------------- Run | Yrd Mat Min Exi Min Mat Fac Low Low Fac Low Low Zio Dee Pro Fac Fac DSF Res Res Acc Gar Turns Passed 7924 | . 483 1018 904 238 748 369 296 59 108 55 564 370 703 149 75 48 81 392 224 411 629 Spaces Moved 10231 | 1 275 533 849 171 430 432 446 84 222 133 1170 489 1035 314 169 264 140 818 891 1075 290 Core 4 | . . . . . . . . . . . . . . . . . . . . . 4 Treads 729 | . 235 308 . . 144 . . . . . . . . . . . . . . . 42 Legs 78 | 1 40 . . . . . . . . . . . . . . . . . . . 37 Wheels 1390 | . . 225 849 171 145 . . . . . . . . . . . . . . . . Hover 224 | . . . . . 56 . . . . . . . . . . . . . . . 168 Flight 7806 | . . . . . 85 432 446 84 222 133 1170 489 1035 314 169 264 140 818 891 1075 39 Fastest Speed 10 | 120 120 95 95 95 50 39 39 39 35 35 35 35 17 17 17 17 17 13 10 10 40 Average Speed 49 | 120 154 132 95 105 127 44 39 39 35 35 35 35 34 33 20 17 17 15 12 11 134 Slowest Speed 475 | 120 160 160 95 110 475 50 39 39 35 35 35 35 35 34 34 17 17 27 85 219 400 Overloaded Moves 3 | . . . . . . . . . . . . . . . . . . . . 3 . Propulsion Burnouts . | . . . . . . . . . . . . . . . . . . . . . . Robots Hopped 39 | . . . . . . 1 2 1 1 1 4 . . . . 2 1 1 13 12 . Cave-ins Triggered . | . . . . . . . . . . . . . . . . . . . . . . Exploration Rate (%) 40 | 2 63 85 91 45 36 9 58 14 7 31 68 63 70 51 5 3 91 13 24 32 25 Regions Visited 21 Branch Regions 10 Pre-discovered Areas 2 | . . . 1 . . . . . . 1 . . . . . . . . . . . Known Exits Taken 19 | . 1 1 1 1 1 1 1 1 1 1 1 1 1 1 1 1 . 1 1 1 . Unknown Exits Taken 1 | 1 . . . . . . . . . . . . . . . . . . . . . Scrap Searched 12 | . . 1 . 1 . . 3 . . 1 4 2 . . . . . . . . . Spaces Dug 67 | . . . . . 25 . . . . . . 2 . . . . . 6 7 23 4 Terrain Destroyed 692 | . 36 149 . 14 157 88 . . . . 78 2 62 . . . . 6 14 82 4 Melee 42 | . . . . . . . . . . . . 2 . . . . . 6 7 23 4 Projectile 1 | . . . . . 1 . . . . . . . . . . . . . . . . AOE 649 | . 36 149 . 14 156 88 . . . . 78 . 62 . . . . . 7 59 . Terrain Rammed . | . . . . . . . . . . . . . . . . . . . . . . Walls Destroyed . | . . . . . . . . . . . . . . . . . . . . . . Machines Disabled . | . . . . . . . . . . . . . . . . . . . . . . Actions | -11 -10 -10 -10 -9 -8 -7 -7 -7 -6 -6 -6 -6 -6 -5 -5 -4 -4 -3 -2 -1 -1 --------- Run | Yrd Mat Min Exi Min Mat Fac Low Low Fac Low Low Zio Dee Pro Fac Fac DSF Res Res Acc Gar Total 12546 | . 319 805 949 229 584 598 565 104 251 139 1305 570 1374 356 209 264 195 1071 973 1280 406 Wait 1703 | . 5 223 64 41 92 146 122 18 25 8 128 14 288 39 33 . 40 206 66 140 5 Move 10135 | . 274 532 848 170 429 429 441 81 219 130 1161 488 1034 313 168 259 137 815 866 1051 290 Hop 37 | . . . . . . 1 2 1 1 1 4 . . . . 2 1 1 11 12 . Pick Up 66 | . 8 7 8 4 3 6 . . 3 . . 3 5 . 3 . 4 4 1 5 2 Fast Attach 82 | . 4 1 . 2 16 3 . 1 . . . . 10 . . . 2 . 8 9 26 Attach 54 | . 2 3 1 2 2 3 . . 2 . . 3 5 2 3 2 3 3 4 10 4 Detach 34 | . 4 . . 1 2 1 . . . . . . 6 2 1 1 4 1 5 4 2 Swap 6 | . 1 4 . 1 . . . . . . . . . . . . . . . . . Drop 83 | . 8 8 7 7 8 4 . 1 1 . . 3 14 . 1 . 3 3 3 12 . Fire 148 | . 13 23 . 1 32 5 . 2 . . 12 . 12 . . . 1 . 1 5 41 Melee 142 | . . . . . . . . . . . . 59 . . . . . 8 8 32 35 Ram 1 | . . . . . . . . . . . . . . . . . . . . . 1 Kick . | . . . . . . . . . . . . . . . . . . . . . . Crush . | . . . . . . . . . . . . . . . . . . . . . . Escape Stasis 30 | . . . . . . . . . . . . . . . . . . 30 . . . Rewire 21 | . . . 21 . . . . . . . . . . . . . . . . . . Trap 4 | . . 4 . . . . . . . . . . . . . . . . . . . Miscellaneous . | . . . . . . . . . . . . . . . . . . . . . . Route ------- -11/Scrapyard -10/Materials -10/Mines (discovered 3 exits: *Mat x2 / *Exi) -10/Exiles (discovered 2 exits: *Min x2) -9/Mines -8/Materials (discovered 3 exits: *Fac x3) -7/Factory (discovered 2 exits: *Low x2) -7/Lower Caves -7/Lower Caves -6/Factory (discovered 2 exits: Fac / *Low) -6/Lower Caves -6/Lower Caves -6/Zion (discovered 2 exits: *Dee / *Pro) -6/Deep Caves -5/Proximity Caves -5/Factory (discovered 2 exits: *Fac / DSF) -4/Factory (discovered 2 exits: *Upp / DSF) -4/DSF -3/Research (discovered 3 exits: *Res x3) -2/Research (discovered 3 exits: *Acc x3) -1/Access (discovered 2 exits: Sur / Gar) -1/Garrison History --------- Turn | Location | Event 1 | -11/Scrapyard | Discovered new exit (range 0) 1 | -11/Scrapyard | Entered Materials 312 | -10/Materials | Build established: Mutant 467 | -10/Materials | Discovered new exit (range 12) 483 | -10/Materials | Identified exit to Mines 484 | -10/Materials | Entered Mines 608 | -10/Mines | Found a hidden stash of uninstalled traps 1023 | -10/Mines | Excavation squad dispatched 1023 | -10/Mines | A large section of the Mines collapsed 1166 | -10/Mines | Core integrity fell below 50% 1198 | -10/Mines | Lost 3 parts (1n2w) 1245 | -10/Mines | Discovered new exit (range 8) 1309 | -10/Mines | Discovered new exit (range 5) 1314 | -10/Mines | Identified exit to Materials 1316 | -10/Mines | Found the Drone Emporium 1320 | -10/Mines | Found Prototype Device 1497 | -10/Mines | Deemed a non-threat by the Exiles lab entrance 1498 | -10/Mines | Discovered new exit (range 5) 1501 | -10/Mines | Identified exit to Exiles 1502 | -10/Mines | Entered Exiles 1503 | -10/Exiles | Identified exit to Mines 1530 | -10/Exiles | Met 8R-AWN 1556 | -10/Exiles | Met EX-HEX 1582 | -10/Exiles | Met EX-BIN 1595 | -10/Exiles | Aligned with FarCom system 1596 | -10/Exiles | Given EX-Vault access code 1620 | -10/Exiles | Opened EX-Vault 1631 | -10/Exiles | Found Field Lobotomy Kit 1639 | -10/Exiles | Found Cloak of Protection 1654 | -10/Exiles | Found Flying Fortress v7 1690 | -10/Exiles | Warned to stay clear of 0b10 Research branches 1724 | -10/Exiles | Learned location of Zion (-6) 1729 | -10/Exiles | Met EX-DEC 1768 | -10/Exiles | Visited The Gauntlet 2406 | -10/Exiles | Stole three prototypes: Flying Fortress v7, Cloak of Protection, Field Lobotomy Kit 2406 | -10/Exiles | Entered Mines 2433 | -9/Mines | Met a Derelict who couldn't figure out how to use a Trap Extractor 2500 | -9/Mines | System corruption reached 10% 2570 | -9/Mines | Found a damaged Exp. Sensor Array with a note attached 2572 | -9/Mines | Found Prototype Device 2619 | -9/Mines | Discovered new exit (range 7) 2623 | -9/Mines | Identified exit to Materials 2644 | -9/Mines | Entered Materials 2644 | -8/Materials | Accompanied by 2 allies 2644 | -8/Materials | Evolved 4 slots: Propulsion x2, Utility x2 2650 | -8/Materials | Led the pair of lost Derelicts to an unsafe place 2842 | -8/Materials | Lost 3 parts (1n1u1w) 2899 | -8/Materials | Identified Exp. Sensor Array 3010 | -8/Materials | Repaired Exp. Sensor Array 3103 | -8/Materials | Lost 3 parts (2n1u) 3259 | -8/Materials | Identified exit to Factory 3392 | -8/Materials | Entered Factory 3392 | -7/Factory | Evolved 2 slots: Propulsion x1, Utility x1 3394 | -7/Factory | FarCom data flow suspended 3401 | -7/Factory | Identified exit to Lower Caves 3548 | -7/Factory | Build established: Hacker-Mutant 3634 | -7/Factory | Repaired Hvy. Missile Launcher 3725 | -7/Factory | Fabricated R-06 Scavenger (x1) 3761 | -7/Factory | Entered Lower Caves 3761 | -7/Lower Caves | Accompanied by 1 ally 3811 | -7/Lower Caves | Encountered a Warlord checkpoint 3879 | -7/Lower Caves | Learned 4 Factory zone layouts 3880 | -7/Lower Caves | Learned Factory emergency access door positions 4013 | -7/Lower Caves | Discovered new exit (range 6) 4015 | -7/Lower Caves | Identified exit to Lower Caves 4057 | -7/Lower Caves | Entered another Lower Caves area 4057 | -7/Lower Caves | Accompanied by 1 ally 4078 | -7/Lower Caves | Discovered new exit (range 14) 4083 | -7/Lower Caves | Identified exit to Factory 4104 | -7/Lower Caves | Assimilated P-60 Hacker with FLK Orb 4116 | -7/Lower Caves | Entered Factory 4116 | -6/Factory | Accompanied by 2 allies 4116 | -6/Factory | Evolved 2 slots: Propulsion x1, Utility x1 4117 | -6/Factory | Identified exit to Factory 4196 | -6/Factory | Discovered new exit (range 10) 4198 | -6/Factory | Identified exit to Lower Caves 4224 | -6/Factory | Entered Lower Caves 4234 | -6/Lower Caves | Encountered a Warlord checkpoint 4261 | -6/Lower Caves | Discovered new exit (range 8) 4263 | -6/Lower Caves | Identified exit to Lower Caves 4279 | -6/Lower Caves | Entered another Lower Caves area 4330 | -6/Lower Caves | Learned 4 Factory zone layouts 4763 | -6/Lower Caves | Murdered 3 allies 4839 | -6/Lower Caves | Discovered new exit (range 12) 4843 | -6/Lower Caves | Identified exit to Zion 4843 | -6/Lower Caves | Entered Zion 4869 | -6/Zion | Discovered new exit (range 16) 4875 | -6/Zion | Identified exit to Proximity Caves 4944 | -6/Zion | Given A8's code to call for help 5191 | -6/Zion | Discovered new exit (range 5) 5192 | -6/Zion | Saw the warning signs outside the Deep Caves entrance 5200 | -6/Zion | Enhanced Grunt warped into view, answering call for help 5201 | -6/Zion | Enhanced Grunt warped into view, answering call for help 5202 | -6/Zion | Identified exit to Deep Caves 5213 | -6/Zion | Entered Deep Caves 5213 | -6/Deep Caves | Accompanied by 2 allies 5273 | -6/Deep Caves | Attacked by Z-Imprinter 5279 | -6/Deep Caves | Allies destroyed Z-Imprinter 5289 | -6/Deep Caves | Found Prototype Device 5289 | -6/Deep Caves | Identified Zio. Metafield Generator 5300 | -6/Deep Caves | Found Prototype Protection 5300 | -6/Deep Caves | Identified Zio. Weapon Casing 5305 | -6/Deep Caves | Identified Splice Drone Bay 5345 | -6/Deep Caves | Z-Facility disabled 5560 | -6/Deep Caves | Build established: Mutant 5592 | -6/Deep Caves | Spotted AG-57229 5722 | -6/Deep Caves | Discovered new exit (range 6) 5723 | -6/Deep Caves | Identified exit to Proximity Caves 5863 | -6/Deep Caves | Spotted AG-42038 5916 | -6/Deep Caves | Entered Proximity Caves 6064 | -5/Proximity Caves | Discovered exit to Factory (range 4) 6065 | -5/Proximity Caves | Entered Factory 6065 | -5/Factory | Evolved 2 slots: Power x1, Utility x1 6123 | -5/Factory | Identified exit to DSF 6126 | -5/Factory | Discovered new exit (range 13) 6130 | -5/Factory | Identified exit to Factory 6140 | -5/Factory | Entered another Factory area 6140 | -4/Factory | Evolved 2 slots: Utility x2 6149 | -4/Factory | Discovered new exit (range 16) 6152 | -4/Factory | Identified exit to Upper Caves 6169 | -4/Factory | Identified exit to DSF 6188 | -4/Factory | Entered DSF 6198 | -4/DSF | Assimilated H-71 Marshal with FLK Orb 6209 | -4/DSF | Additional patrols routed to DSF 6212 | -4/DSF | Discovered new exit (range 15) 6266 | -4/DSF | Identified exit to Research 6269 | -4/DSF | Entered Research 6269 | -3/Research | Evolved 2 slots: Propulsion x1, Utility x1 6347 | -3/Research | Spotted B-86 Titan 6395 | -3/Research | Build established: Scavenger-Sprinter 6527 | -3/Research | Identified exit to Research 6661 | -3/Research | Entered another Research area 6661 | -2/Research | Evolved 2 slots: Propulsion x1, Utility x1 6714 | -2/Research | Identified exit to Access 6750 | -2/Research | Mak. Hacking Suite fried by hacking feedback 6873 | -2/Research | Spotted B-90 Cyclops 6885 | -2/Research | Entered Access 6885 | -1/Access | Evolved 2 slots: Utility x2 7177 | -1/Access | Identified exit to Surface 7221 | -1/Access | Energy Cycler disabled 7270 | -1/Access | Assimilated G-73 Enforcer with FLK Orb 7293 | -1/Access | Spotted B-99 Colossus 7296 | -1/Access | Identified exit to Garrison 7296 | -1/Access | Entered Garrison 7326 | -1/Garrison | Lost 16 parts (1p7n6u2w) 7342 | -1/Garrison | Rescued a captive Derelict 7342 | -1/Garrison | Rescued a captive Derelict 7486 | -1/Garrison | Triggered checkpoint 7540 | -1/Garrison | Garrison Relay disabled 7573 | -1/Garrison | P-80 Master assimilated allied PW-L2E(g) 7657 | -1/Garrison | Lost 7 parts (2p4u1w) 7694 | -1/Garrison | Build established: Scavenger-Mutant 7752 | -1/Garrison | Core integrity fell below 50% 7788 | -1/Garrison | Lost 4 parts (2n2u) 7828 | -1/Garrison | Spotted B-99 Colossus 7918 | -1/Garrison | Core integrity fell below 20% 7925 | -1/Garrison | Destroyed by P-80 Master with Gamma Rifle Last Messages --------------- 07914_ Zio. Biocell destroyed. 07914_ Slug penetrates C-57 Dissector. 07915_ The unstable cave ceiling collapses. 07915_ Microactuators destroyed. 07916_ C-57 Dissector suffers critical hit (Smash). 07916_ Destroyed Mic. Fission Core. 07916_ C-57 Dissector system corrupted by crushing effect. 07917_ C-57 Dissector system terminally corrupted. 07917_ Dual-blade Saw fried. 07917_ Adv. Surge Thruster fried. 07917_ The unstable cave ceiling collapses. 07917_ Penetrated by Slug. 07917_ Slug penetrates Earth. 07918_ Antimissile System destroyed. 07920_ Adv. Heat Sink destroyed. 07920_ Hacking Suite destroyed. 07921_ Penetrated by Slug. 07921_ Slug penetrates Wall. 07923_ Rnf. Antimatter Reactor destroyed. 07925_ Graphene Brace destroyed. Map ----- +----------------------------------------------------+ | ???????????????????????????????????????????? | | ???????????????????????????????????????????? | | ???????????????????????????????????????????? | | ???????????????????????????????????????????? | | ???????????????????????????????????????????? | | ??????????????????????????????????????????? | | ############??????????????????????????????? | | #??????????????????????????????? | | ##?????????????????????????????? | | ?? ??????????????????????????????? | | #??#"#??# #???????????######?????????????? | | #??# #??# #??????????## !!!#?????????????? | | #??#!#??# #???###????#! #?????????????? | | #??#%#??# #### #?????! !!#?????????????? | | #??#!#??# #?????# !???????????????? | | #??# #?## ####### ####??#??????????? | | #### ###" % #? #??????????? | | | # ########Y##### #??????????? | | ! # ##??# ## ???????????? | | ### ##### # # #???## !!! #???????????? | | ??# #???# ######???# #???????????? | | ??# #???# #????????# ! ! ##???????????? | | ### #???# #?????????# !! #???????????? | | #"# ###?# ############ ##???????????? | | #"!!% ### + Y##????????????? | | #!! % # #???###### # @ #????????????? | | #"! ### #????????# c%c ##????????????? | | #"# ###?# #????????# !!! #????????????? | | ### #???# #????????## #????????????? | | ??# #???# #?????????# Y=[[ #????????????? | | ??# #???# #?????????# *p[[ #????????????? | | ?## ##??# ############ ##????????????? | | ?#! !#??# + #?????????????? | | ?#! !#??# #############+####?????????????? | | ?#! !#??# #???????????? #????????????????? | | ?##"##??# #???????????? #????????????????? | | ??# #???# #???????????? ?????????????????? | | ??# #???# * #???????????? ?????????????????? | | ??# #???#% ###?????????? ?????????????????? | | ??# ##### ##????????? ?????????????????? | | ??# " "#?????????#?????????????????? | | ??# ##### ##???????????????????????????? | | ?## ##??###"###????????????????????????????? | | ## #????###??????????????????????????????? | | #?????????????????????????????????????? | | # %#?????????????????????????????????????? | | ######?????????????????????????????????????? | | ???????????????????????????????????????????? | | ???????????????????????????????????????????? | | ???????????????????????????????????????????? | +----------------------------------------------------+ Best States ------------- Heat Dissipation 128 Energy Generation 43 Energy Capacity 1175 Matter Stores 300 Matter Capacity 300 Sight Range 16 Robot Scan Range 20 Terrain Scan Density 10 Cloak Strength 5 Armor Coverage 1200 Core Shielding 30 Point Defense Rating 240 Melee Speed Boost 20 Evasion (%) 68 Targeting Accuracy 6 Target Analysis 12 Recoil Reduction 2 Offensive Hacking 44 Defensive Hacking 10 Item Schematics ----------------- Cloaking Device | -6/Zion | Archive Variable Charge Gun | -6/Zion | Archive Mni. Drone Bay | -6/Zion | Archive 0b10 Decoder Chip [Skirmisher] | -6/Zion | Archive Mapping Drone Bay | -6/Zion | Archive Plasma Rifle | -6/Zion | Archive Imp. Antigrav System | -6/Zion | Archive Antigrav System | -6/Zion | Archive Lgt. Fission Core | -6/Zion | Archive Drone Bay | -6/Zion | Archive Adv. Cooling System | -6/Zion | Archive Imp. Launcher Guidance Computer | -6/Zion | Archive Imp. System Shield | -6/Zion | Archive Adv. Coolant Injector | -6/Zion | Archive Robot Schematics ------------------ A-15 Conveyor | -6/Zion | Archive T-07 Excavator | -6/Zion | Archive R-06 Scavenger | -6/Zion | Archive Fabricated ------------ R-06 Scavenger | x1 | -7/Factory | Preloaded Alien Tech Used ----------------- None Achievements -------------- Are We The Baddies? Error 47 Help From High Places No Explosion For You Speed Demon Challenges ------------ None Game ------ Seed StasisWeightSubcomponent Manual? 1 Play Time 03:06:40 Cumulative 51.5 hours Start 2024.04.23 @ 23:57:38 End 2024.04.24 @ 23:48:03 Sessions 5 Manual Loads 0 Difficulty Rogue Special Mode None Game No. 84 Rogue 83 Adventurer 1 Explorer 0 Win Type - Total 2 Types 2/0/0/0/0/0/0/0/0 Lore% 27 Gallery% 52 Achievement% 43 Wizard Run 0 Options --------- Layout 0 ASCII 0 Keyboard 0 Movement Numpad Keybinds 0 Fullscreen 1 Font 18/SmallcapsGlow Map View 76x50 Zoom Use 0% Tactical HUD 1 Map Filters NONE Filters NONE Steam 1 RUN: 50039a51-c5bb-43bb-9e31-cf1cb0cd5cd1